bitfinex/quotes_ETHUSD_20240612
["timestamp","ask_amount","ask_price","bid_price","bid_amount"]
[1718211907022,1.40416334,3614.2,3612.3,2.3519]
[1718211907023,2.56160848,3614.1,3612.9,2.7678]
[1718211907242,2.469,3613.9,3612.4,2.76819]
[1718211907512,1.98344514,3613.8,3612.4,2.76819]
[1718211908020,0.57816334,3613.6,3612.4,2.76819]
[1718211908220,0.55,3613.5,3612.4,2.76819]
[1718211908978,1.43344514,3613.4,3612.4,2.76819]
[1718211909180,0.55,3613.3,3612.4,2.76819]
[1718211909414,1.98344514,3613.3,3612.4,2.76819]
[1718211909577,1.98344514,3613.3,3612.0,2.76849]
[1718211909578,1.43344514,3613.2,3612.0,2.76849]
[1718211909785,2.4777,3613.0,3611.5,2.76893]
[1718211910019,2.4777,3613.0,3611.8,2.76868]
[1718211910020,1.98344514,3612.9,3611.8,2.76868]
[1718211910181,0.55,3612.9,3612.1,2.76844]
[1718211911744,8.56416334,3613.5,3611.3,1.986]
[1718211911745,3.0,3613.5,3611.7,1.986]
[1718211911939,1.98344514,3613.4,3611.8,0.05536541]
[1718211912081,4.98344514,3613.4,3611.8,2.7687]
[1718211912284,4.98344514,3613.4,3611.3,4.659]
[1718211912285,1.98344514,3613.4,3611.3,3.0]
[1718211912513,3.0,3613.3,3612.1,2.76842]
[1718211912813,1.43344514,3613.2,3612.1,2.76842]
[1718211913052,0.55,3613.1,3612.1,2.76842]
[1718211913253,1.98344514,3613.1,3612.1,2.76842]
[1718211913935,1.43344514,3613.0,3611.7,2.76876]
[1718211914279,0.55,3612.9,3611.7,2.76876]
[1718211914552,1.43344514,3612.8,3611.7,2.76876]
[1718211915050,0.55,3612.7,3611.7,2.76876]
[1718211915251,1.98344514,3612.7,3611.7,2.76876]
[1718211917546,2.283,3612.6,3611.7,2.76876]
[1718211917762,0.55,3612.5,3611.7,2.76876]
[1718211918963,1.98344514,3612.5,3611.4,2.769]
[1718211919731,1.43344514,3612.4,3611.4,2.769]
[1718211919927,0.55,3612.3,3610.0,2.77003]
[1718211920197,2.3852,3611.6,3610.0,2.77003]
[1718211920454,2.3852,3611.6,3610.2,2.76989]
[1718211920455,0.55,3611.5,3610.2,2.76989]
[1718211920670,1.43344514,3611.4,3610.2,2.76989]
[1718211920841,0.55,3611.3,3610.2,2.76989]
[1718211921035,1.98344514,3611.3,3610.4,2.76971]
[1718211922243,1.98344514,3611.3,3609.3,1.659]
[1718211922244,3.81864514,3611.1,3608.3,1.659]
[1718211922466,0.55,3611.3,3607.9,4.0309]
[1718211922467,1.986,3610.1,3607.9,4.0309]
[1718211922675,3.40228773,3610.0,3608.6,2.77108]
[1718211923013,3.75,3610.3,3608.7,0.05542547]
[1718211923014,3.0,3610.3,3608.7,0.05542547]
[1718211923293,3.0,3610.3,3608.5,1.986]
[1718211923294,2.3852,3610.4,3608.8,0.05541403]
[1718211923444,0.55,3610.3,3608.9,1.986]
[1718211923643,0.55,3610.3,3609.5,2.77042]
[1718211923981,1.43344514,3610.2,3609.0,2.7708]
[1718211924150,1.43344514,3610.2,3606.9,0.75]
[1718211924151,1.43344514,3610.3,3608.6,1.986]
[1718211924844,1.43344514,3610.3,3609.3,2.77058]
[1718211926573,1.86717529,3610.3,3609.3,2.77058]
[1718211926979,2.3852,3610.4,3609.8,2.77017]
[1718211929261,2.3852,3610.4,3610.1,2.77]
[1718211931213,2.2848,3611.0,3610.4,2.76975]
[1718211931380,3.71824514,3611.0,3610.4,2.76975]
[1718211932465,2.2848,3611.0,3610.4,2.76975]
[1718211933500,2.2848,3611.0,3610.8,2.7694]
[1718211937661,2.2808,3611.5,3610.8,2.7694]
[1718211937863,3.71424514,3611.5,3610.8,2.7694]
[1718211938179,3.0,3611.4,3610.8,2.7694]
[1718211938995,1.43344514,3611.3,3610.1,2.76994]
[1718211939892,1.43344514,3611.3,3610.3,2.7698]
[1718211940284,2.75933505,3611.3,3610.0,2.77007]
[1718211940799,7.10756514,3611.2,3609.4,3.0]
[1718211941100,8.43345505,3611.2,3609.9,2.77011]
[1718211941300,8.43345505,3611.2,3610.1,2.76996]
[1718211941301,5.66423505,3611.2,3610.1,2.76996]
[1718211941472,5.11423505,3611.2,3610.1,2.76996]
[1718211941804,3.78834514,3611.2,3610.1,2.76996]
[1718211942302,5.11423505,3611.2,3610.1,2.76996]
[1718211942803,3.78834514,3611.2,3610.1,2.76996]
[1718211942983,5.11357186,3611.2,3609.4,1.986]
[1718211943188,5.11357186,3611.2,3610.3,2.76981]
[1718211943498,1.32522672,3611.1,3610.3,2.76981]
[1718211943665,1.43344514,3611.0,3610.3,2.76981]
[1718211944397,3.68012672,3611.2,3610.8,2.76945]
[1718211944398,1.32522672,3611.1,3610.8,2.76945]
[1718211944600,2.3549,3611.2,3610.8,2.76945]
[1718211946585,3.68059164,3611.2,3610.8,2.76945]
[1718211947200,2.3549,3611.2,3610.8,2.76945]
[1718211947370,3.68059164,3611.2,3610.8,2.76945]
[1718211948389,1.32569164,3611.1,3610.8,2.76945]
[1718211949437,1.32569164,3610.9,3610.8,2.76945]
[1718211949579,3.72744514,3610.9,3608.7,2.4822]
[1718211949774,1.32551375,3610.6,3609.3,1.986]
[1718211949978,1.32551375,3610.2,3609.3,1.986]
[1718211951108,1.32551375,3610.2,3609.8,2.77017]
[1718211951421,1.32551375,3610.1,3609.5,2.77045]
[1718211951705,3.0,3610.8,3609.5,2.77045]
[1718211951706,1.32551375,3610.0,3609.5,2.77045]
[1718211952400,1.43344514,3610.5,3609.5,2.77045]
[1718211952401,1.32551375,3610.1,3609.5,2.77045]
[1718211952570,1.32538131,3610.1,3609.5,2.77045]
[1718211952772,1.32538131,3610.0,3609.5,2.77045]
[1718211953482,1.32538131,3610.0,3609.7,2.77029]
[1718211953667,1.32538131,3610.1,3609.7,2.77029]
[1718211953881,1.32538131,3610.2,3609.7,2.77029]
[1718211954788,2.4412,3610.0,3607.7,4.24606181]
[1718211955020,1.32538131,3609.8,3608.2,1.986]
[1718211955219,1.43344514,3609.7,3607.7,2.2716]
[1718211955426,1.43344514,3609.7,3608.4,2.77127]
[1718211955427,1.32538131,3609.3,3608.4,2.77127]
[1718211955583,2.75882645,3609.3,3608.4,2.77127]
[1718211956310,1.43344514,3609.3,3608.4,2.77127]
[1718211956700,1.43344514,3609.3,3608.0,1.986]
[1718211956701,1.43344514,3609.3,3608.6,2.77112]
[1718211957220,1.32538131,3609.5,3608.8,2.77093]
[1718211957551,1.43344514,3609.5,3608.8,2.77093]
[1718211957717,4.43344514,3609.5,3608.8,2.77093]
[1718211958514,1.32538131,3609.7,3609.0,2.77078]
[1718211958804,3.76658131,3610.0,3609.0,2.77078]
[1718211959127,4.43344514,3609.9,3609.0,2.77078]
[1718211962024,0.47893616,3610.2,3609.4,2.77048]
[1718211962025,0.57816334,3610.2,3609.4,2.77048]
[1718211962199,0.57816334,3610.2,3609.6,2.77035]
[1718211962398,3.0,3610.4,3609.6,2.77035]
[1718211962399,0.57816334,3610.4,3609.6,2.77035]
[1718211962628,1.43344514,3610.3,3609.6,2.77035]
[1718211962824,0.57816334,3610.2,3609.6,2.77035]
[1718211964344,0.57816334,3610.1,3609.6,2.77035]
[1718211965505,0.57816334,3610.0,3609.6,2.77035]
[1718211966502,0.57816334,3609.9,3609.6,2.77035]
[1718211967036,0.57816334,3610.0,3609.6,2.77035]
[1718211967396,0.57816334,3609.9,3609.6,2.77035]
[1718211968031,0.86724501,3610.0,3609.6,2.77035]
[1718211968032,0.57816334,3610.0,3609.6,2.77035]
[1718211968546,0.57816334,3609.9,3609.6,2.77035]
[1718211968898,0.44016334,3609.9,3609.6,2.77035]
[1718211970330,0.44016334,3609.9,3609.3,2.77056]
[1718211970643,1.43344514,3609.8,3608.7,1.986]
[1718211970811,0.86724501,3609.7,3608.7,1.986]
[1718211971241,0.83924501,3609.6,3608.7,1.986]
[1718211971412,2.58977182,3609.8,3608.7,1.986]
[1718211971613,2.4102,3609.7,3608.4,2.77127]
[1718211971803,2.4102,3609.7,3608.7,1.986]
[1718211972000,2.4102,3609.7,3609.0,2.77079]
[1718211972584,1.43344514,3609.8,3609.0,2.77079]
[1718211973959,1.15632668,3610.0,3609.4,2.77049]
[1718211975146,2.4839,3610.1,3609.4,2.77049]
[1718211976140,3.91734514,3610.1,3609.4,2.77049]
[1718211980344,1.43344514,3610.0,3609.1,2.77071]
[1718211980642,4.43344514,3610.0,3609.1,2.77071]
[1718211982944,4.43344514,3610.0,3608.8,2.77093]
[1718211983153,7.20354514,3610.0,3608.8,2.77093]
[1718211984048,2.77047,3609.5,3608.5,2.77122]
[1718211984252,1.43344514,3609.4,3608.5,2.77122]
[1718211985646,3.0,3609.7,3608.7,2.77105]
[1718211985856,1.43344514,3609.6,3608.7,2.77105]
[1718211986449,1.43344514,3609.6,3608.9,2.77091]
[1718211986655,3.0,3610.0,3608.9,2.77091]
[1718211986854,1.43344514,3609.9,3608.9,2.77091]
[1718211988057,1.43344514,3609.9,3609.1,2.77073]
[1718211988260,3.0,3610.0,3609.3,2.77055]
[1718211988261,0.57716497,3609.5,3609.3,2.77055]
[1718211988465,0.57716497,3609.6,3609.3,2.77055]
[1718211988764,0.57716497,3609.8,3609.5,2.77044]
[1718211989983,0.57716497,3610.0,3609.8,2.77023]
[1718211990281,0.57716497,3610.1,3609.8,2.77023]
[1718211990446,8.03716497,3610.3,3610.1,2.77]
[1718211992036,7.46,3610.3,3610.1,2.77]
[1718211992434,8.03716497,3610.3,3610.1,2.77]
[1718211992672,7.46,3610.3,3610.1,2.77]
[1718211993280,8.03716497,3610.3,3610.1,3.2456]
[1718211993439,0.57716497,3610.5,3610.4,2.76977]
[1718211994257,0.86574746,3610.6,3610.4,2.76977]
[1718211995358,0.57807873,3610.5,3610.4,2.76977]
[1718211995561,0.86574746,3610.6,3610.4,2.76977]
[1718211996074,0.86574746,3610.6,3610.5,1.986]
[1718211996274,0.57828419,3610.6,3610.5,4.3407]
[1718211996587,8.61432995,3610.9,3610.6,2.76962]
[1718211996588,8.03828419,3610.9,3610.6,2.76962]
[1718211996944,7.46,3610.9,3610.6,2.76962]
[1718211997762,7.46,3610.9,3610.7,2.76952]
[1718211997943,7.46,3610.9,3610.8,0.711022]
[1718211999386,19.79,3611.2,3610.9,2.76937]
[1718211999602,19.79,3611.2,3611.1,2.76923]
[1718212003356,5.3218,3612.2,3611.1,2.76923]
[1718212003357,2.25e-06,3612.4,3612.2,5.53678]
[1718212003562,2.3397,3613.6,3612.4,2.76824]
[1718212003563,0.86559647,3613.0,3612.4,2.76824]
[1718212003758,1.15454155,3613.1,3612.0,2.76853]
[1718212003759,2.3397,3612.8,3612.0,2.76853]
[1718212003979,2.3397,3612.8,3611.8,1.986]
[1718212004380,0.86559647,3612.7,3611.8,1.986]
[1718212005394,3.86559647,3612.7,3611.8,1.986]
[1718212005599,3.0,3612.7,3611.8,1.986]
[1718212005784,0.62052965,3612.6,3611.8,1.986]
[1718212005989,2.05397479,3612.6,3611.8,1.986]
[1718212006316,1.43344514,3612.5,3611.8,1.986]
[1718212006497,1.43344514,3612.5,3611.6,2.76879]
[1718212006809,5.25886,3612.4,3611.4,1.986]
[1718212006988,5.18584139,3612.3,3611.4,1.986]
[1718212007508,6.05143786,3612.3,3611.4,1.986]
[1718212007712,5.18584139,3612.3,3611.4,1.986]
[1718212008009,2.384,3612.1,3610.9,2.76937]
[1718212008321,2.76877,3611.8,3610.7,1.986]
[1718212008479,2.76886,3611.6,3610.5,2.76963]
[1718212008674,1.43344514,3611.5,3610.5,2.76963]
[1718212008993,4.43344514,3611.5,3610.5,2.76963]
[1718212009313,3.0,3611.5,3610.7,4.75547]
[1718212009473,3.0,3611.6,3610.7,4.75547]
[1718212009834,7.46,3611.9,3611.1,1.986]
[1718212010912,7.46,3611.9,3611.1,4.75517]
[1718212011078,1.43344514,3611.8,3610.7,1.986]
[1718212012015,1.43344514,3611.8,3610.7,4.75552]
[1718212013208,1.43344514,3611.8,3610.7,2.76952]
[1718212013428,2.2671,3611.7,3610.7,2.76952]
[1718212013591,3.70054514,3611.7,3610.7,2.76952]
[1718212016409,2.2671,3611.7,3610.6,1.986]
[1718212016615,3.0,3611.8,3610.7,0.05538477]
[1718212016789,3.0,3611.8,3611.0,1.986]
[1718212016989,3.0,3611.8,3611.2,2.7691]
[1718212021489,3.0,3611.8,3611.0,1.986]
[1718212022505,4.91219472,3611.8,3611.0,1.986]
[1718212022803,0.56931526,3611.7,3611.0,1.986]
[1718212024134,3.0,3611.8,3611.1,2.76917]
[1718212024432,3.4787312,3611.8,3611.1,2.76917]
[1718212024619,3.0,3611.8,3611.1,2.76917]
[1718212025198,4.43344514,3611.8,3611.0,1.986]
[1718212025498,1.32804221,3611.7,3611.0,1.986]
[1718212026912,6.24021032,3611.8,3611.0,1.986]
[1718212027499,6.24021032,3611.8,3611.0,4.75529]
[1718212027813,4.80676518,3611.8,3611.2,2.76913]
[1718212028210,3.47872297,3611.8,3611.2,2.76913]
[1718212028430,3.0,3611.8,3611.2,2.76913]
[1718212028599,4.80595988,3611.8,3611.2,2.76913]
[1718212029229,3.47871277,3611.8,3611.2,2.76913]
[1718212030962,5.38206625,3611.8,3611.2,2.76913]
[1718212031256,0.57610637,3611.7,3611.2,2.76913]
[1718212031461,2.2868,3611.7,3610.9,2.76934]
[1718212031754,2.2868,3611.7,3610.1,2.2641]
[1718212031755,1.43344514,3611.6,3610.1,2.2641]
[1718212031921,0.57610637,3611.2,3610.2,1.986]
[1718212032424,0.57610637,3611.1,3610.2,1.986]
[1718212032623,2.3039,3611.0,3610.0,2.77004]
[1718212032831,0.57610637,3610.9,3610.0,2.77004]
[1718212033018,2.3039,3611.0,3610.0,2.77004]
[1718212033019,0.57610637,3610.8,3610.0,2.77004]
[1718212033428,0.57610637,3610.7,3610.0,3.07867523]
[1718212033919,0.57610637,3610.8,3610.0,3.07867523]
[1718212034261,0.57610637,3610.8,3610.3,1.986]
[1718212034964,0.57610637,3611.0,3610.3,1.986]
[1718212035178,0.57610637,3611.0,3610.3,2.21546352]
[1718212035363,0.57610637,3610.9,3610.3,2.21546352]
[1718212035536,0.57610637,3610.9,3610.6,2.76956]
[1718212035742,7.46,3611.2,3610.4,2.4492]
[1718212035743,8.03610637,3611.2,3611.1,2.76923]
[1718212035942,0.57610637,3611.5,3611.4,2.769]
[1718212036136,0.57610637,3611.6,3611.4,2.769]
[1718212036341,8.32559647,3611.8,3611.4,2.769]
[1718212036342,0.57610637,3611.5,3611.4,2.769]
[1718212037066,0.57610637,3611.6,3611.4,2.769]
[1718212037378,0.57610637,3611.7,3611.4,2.769]
[1718212037549,8.03610637,3611.8,3611.6,2.76881]
[1718212038435,0.57610637,3611.7,3611.6,2.76881]
[1718212039253,8.03610637,3611.8,3611.6,2.76881]
[1718212039572,0.57610637,3611.7,3611.6,2.76881]
[1718212039937,7.46,3611.8,3611.5,1.986]
[1718212039938,8.32559647,3611.8,3611.5,1.986]
[1718212040273,0.57874536,3611.6,3611.5,1.986]
[1718212040979,0.57874536,3611.7,3611.5,4.75487]
[1718212041652,0.86559647,3611.7,3611.5,4.75487]
[1718212043485,0.57899432,3611.6,3611.5,4.75487]
[1718212045469,0.57899432,3611.7,3611.5,5.475277]
[1718212045662,0.57899432,3611.8,3611.5,5.475277]
[1718212045857,0.57899432,3612.1,3611.7,2.76872]
[1718212046053,0.57899432,3612.1,3611.9,1.986]
[1718212046464,0.57899432,3612.0,3611.9,1.986]
[1718212047475,0.86559647,3612.1,3611.9,1.986]
[1718212047858,0.86559647,3612.1,3611.7,2.76872]
[1718212048057,0.86559647,3612.1,3611.7,4.75472]
[1718212048058,0.57865891,3611.9,3611.7,4.75472]
[1718212061190,0.57865891,3611.9,3611.7,2.76872]
[1718212061392,0.57865891,3611.9,3611.8,0.828]
[1718212061773,0.86559647,3612.0,3611.8,0.828]
[1718212061978,0.86559647,3612.0,3611.9,0.828]
[1718212062378,0.86559647,3612.1,3611.9,0.828]
[1718212062581,0.86559647,3612.1,3612.0,0.828]
[1718212067499,0.86559647,3612.2,3612.0,0.828]
[1718212067715,0.86559647,3612.2,3612.1,0.828]
[1718212068076,2.48152341,3612.3,3612.1,0.828]
[1718212070582,0.86779303,3612.2,3612.1,0.828]
[1718212071409,0.86779303,3612.3,3612.1,0.828]
[1718212071707,0.86779303,3612.3,3612.2,0.828]
[1718212073309,0.5785289,3612.4,3612.2,0.828]
[1718212073516,0.5785289,3612.5,3612.2,0.828]
[1718212073807,0.5785289,3612.5,3612.1,2.76845]
[1718212073808,0.5785289,3612.5,3612.4,0.828]
[1718212074428,0.86779303,3612.6,3612.1,2.76845]
[1718212074589,0.578491,3612.4,3612.1,2.76845]
[1718212074795,0.578491,3612.4,3612.3,0.828]
[1718212079415,0.86779303,3612.5,3612.3,0.828]
[1718212079594,0.86779303,3612.5,3612.4,0.828]
[1718212079804,1.15454155,3612.6,3612.4,0.828]
[1718212080329,1.15454155,3612.5,3612.4,0.828]
[1718212081393,1.44629093,3612.6,3612.4,0.828]
[1718212081838,1.15849145,3612.5,3612.4,0.828]
[1718212083226,1.15849145,3612.5,3611.9,2.4821]
[1718212083434,1.15849145,3612.5,3612.4,0.828]
[1718212084439,1.15849145,3612.5,3612.0,0.828]
[1718212084748,0.57917489,3612.1,3612.0,2.76854]
[1718212085036,0.57917489,3612.1,3612.0,3.59654]
[1718212085460,0.57917489,3612.2,3612.0,3.59654]
[1718212085750,0.57917489,3612.2,3612.1,1.435864]
[1718212087356,0.86876234,3612.3,3612.1,1.435864]
[1718212087824,0.579483,3612.2,3612.1,4.204334]
[1718212088031,0.579483,3612.3,3612.1,4.204334]
[1718212088341,0.86876234,3612.5,3612.3,2.76831]
[1718212088342,0.579483,3612.5,3612.3,2.76831]
[1718212088543,0.579483,3612.5,3612.4,0.828]
[1718212089348,0.86876234,3612.6,3612.4,0.828]
[1718212089853,0.57955357,3612.5,3612.4,0.828]
[1718212090027,0.57955357,3612.5,3612.4,1.31528174]
[1718212090939,0.57955357,3612.5,3612.4,0.48728174]
[1718212091142,0.57955357,3612.5,3612.4,1.31528174]
[1718212091346,0.57955357,3612.6,3612.4,1.31528174]
[1718212097264,0.57955357,3612.7,3612.4,1.31528174]
[1718212097570,0.57955357,3612.7,3612.4,0.828]
[1718212099963,0.57955357,3612.7,3612.3,2.76831]
[1718212100168,0.57955357,3612.7,3612.3,3.59631]
[1718212106465,0.57955357,3612.7,3612.3,0.828]
[1718212106680,0.57955357,3612.7,3612.4,2.76816]
[1718212110187,0.57955357,3612.7,3612.4,3.872976]
[1718212110370,0.57955357,3612.7,3612.6,0.828]
[1718212114417,0.57955357,3612.7,3612.6,0.88335832]
[1718212114820,0.57955357,3612.8,3612.7,2.76801]
[1718212115528,0.86876234,3612.9,3612.7,2.76801]
[1718212115712,0.86876234,3612.9,3612.7,3.50161054]
[1718212119088,0.86876234,3612.9,3612.7,2.76801]
[1718212119420,0.86876234,3612.8,3612.7,2.76801]
[1718212123439,0.86876234,3612.8,3612.3,0.828]
[1718212123635,0.58012145,3612.6,3612.3,0.828]
[1718212125828,0.58012145,3612.6,3612.5,0.828]
[1718212129888,0.86876234,3612.7,3612.1,5.1133]
[1718212130183,0.5803947,3612.5,3612.2,0.59413]
[1718212133480,0.5803947,3612.4,3612.2,0.59413]
[1718212141722,0.828,3612.3,3611.9,0.57912726]
[1718212141919,0.828,3612.1,3611.7,0.57912726]
[1718212142215,0.828,3611.9,3611.6,0.57912726]
[1718212142376,0.828,3611.9,3611.5,0.57912726]
[1718212142577,3.828,3611.9,3611.5,0.57912726]
[1718212143405,3.828,3611.9,3611.4,0.57912726]
[1718212143716,3.828,3611.9,3611.4,1.24082563]
[1718212143717,3.0,3611.9,3611.4,1.24082563]
[1718212143882,5.2433947,3612.0,3611.4,1.24082563]
[1718212144517,5.2433947,3612.0,3611.5,0.05537089]
[1718212144697,2.2433947,3612.0,3611.5,0.05537089]
[1718212144879,3.0,3611.9,3611.5,0.70501074]
[1718212145081,0.5803947,3612.0,3611.5,0.70501074]
[1718212145381,3.5803947,3612.1,3611.5,3.10321074]
[1718212147119,3.5803947,3612.1,3611.6,2.76881]
[1718212147318,3.5803947,3612.1,3611.7,0.6451148]
[1718212147491,3.5803947,3612.1,3611.5,3.04783985]
[1718212147815,6.6959947,3612.1,3611.5,0.64963985]
[1718212148189,3.6959947,3612.1,3611.5,0.64963985]
[1718212148377,3.0,3612.0,3611.5,0.64963985]
[1718212149830,0.5803947,3611.8,3611.5,0.64963985]
[1718212150028,0.5803947,3611.8,3611.3,2.76903]
[1718212150225,0.828,3611.6,3611.0,2.7693]
[1718212150397,0.828,3611.6,3611.1,1.43344514]
[1718212150589,0.5803947,3611.6,3611.1,1.43344514]
[1718212150929,0.5803947,3611.7,3611.2,0.42027451]
[1718212151089,3.5803947,3611.7,3611.2,0.42027451]
[1718212151288,3.5803947,3611.7,3610.7,3.34860726]
[1718212151289,0.5803947,3611.7,3610.7,3.34860726]
[1718212151489,0.5803947,3611.7,3610.9,2.76939]
[1718212151701,0.5803947,3611.7,3610.9,4.20283514]
[1718212152023,0.5803947,3611.7,3611.0,2.4051]
[1718212152432,1.4083947,3611.8,3611.0,2.4051]
[1718212152623,1.4083947,3611.8,3611.1,0.74359351]
[1718212153323,0.828,3611.8,3611.1,0.74359351]
[1718212154132,0.828,3611.8,3611.2,0.05537225]
[1718212154306,0.828,3611.8,3611.1,3.51280351]
[1718212154651,0.5803947,3611.9,3611.3,2.76904]
[1718212154934,3.5803947,3612.1,3611.5,2.4711]
[1718212155090,3.0,3612.1,3611.5,2.4711]
[1718212155286,3.0,3612.1,3611.6,0.05536745]
[1718212156642,3.0,3612.1,3611.5,5.23998]
[1718212157831,0.828,3612.0,3611.5,5.23998]
[1718212158025,0.828,3612.0,3611.5,5.90732251]
[1718212158434,0.828,3612.0,3611.5,3.13844251]
[1718212163041,0.828,3612.0,3611.5,0.66734251]
[1718212163736,1.4083947,3612.0,3611.5,0.66734251]
[1718212163898,0.828,3611.8,3611.5,0.66734251]
[1718212166599,0.828,3611.6,3611.1,2.4408]
[1718212166802,0.828,3611.6,3611.1,3.87424514]
[1718212175413,0.828,3611.8,3611.1,3.87424514]
[1718212175615,0.828,3611.8,3611.2,0.66435451]
[1718212180365,0.828,3611.3,3610.7,0.57912726]
[1718212180564,0.828,3610.8,3610.4,1.108031]
[1718212183031,0.828,3610.9,3610.5,0.05538642]
[1718212184455,0.828,3610.6,3609.6,0.57912726]
[1718212184791,1.663,3610.7,3609.4,2.77052]
[1718212184792,0.828,3609.9,3609.4,2.77052]
[1718212185604,0.828,3609.9,3609.4,4.20396514]
[1718212185749,0.828,3609.9,3609.5,0.42039651]
[1718212196400,0.828,3609.7,3609.5,0.42039651]
[1718212198196,4.663,3610.2,3609.1,2.77072]
[1718212198412,0.828,3609.5,3609.2,1.43344514]
[1718212198590,0.828,3609.5,3609.1,2.77072]
[1718212198798,0.828,3609.5,3609.1,4.20416514]
[1718212200169,0.828,3609.7,3609.1,4.20416514]
[1718212200371,0.828,3609.7,3609.2,0.64629651]
[1718212201883,3.0,3610.0,3609.3,4.25939746]
[1718212202095,3.0,3610.2,3609.3,4.25939746]
[1718212202406,0.828,3609.7,3609.4,2.4078]
[1718212202575,3.0,3610.2,3608.6,1.108567]
[1718212202576,0.828,3609.5,3609.0,2.7708]
[1718212202775,0.828,3609.5,3608.6,1.108567]
[1718212202776,0.828,3609.1,3608.7,2.77104]
[1718212203118,3.0,3609.5,3608.8,1.43344514]
[1718212203328,3.0,3609.5,3608.7,2.77104]
[1718212203329,0.828,3609.0,3608.7,2.77104]
[1718212203540,0.828,3608.8,3608.7,1.43344514]
[1718212204374,3.0,3609.5,3608.7,1.43344514]
[1718212204685,0.828,3609.0,3608.7,1.43344514]
[1718212204904,0.828,3608.8,3608.7,1.43344514]
[1718212205376,3.0,3609.5,3608.7,1.43344514]
[1718212205377,0.828,3609.0,3608.7,1.43344514]
[1718212206603,3.0,3609.5,3608.7,1.43344514]
[1718212206813,0.828,3609.2,3608.8,2.31270899]
[1718212207017,0.828,3609.3,3608.8,2.31270899]
[1718212207902,4.663,3609.7,3608.8,7.16885254]
[1718212208209,0.828,3609.4,3609.0,2.77079]
[1718212208379,0.828,3609.5,3609.1,0.05540616]
[1718212209092,0.828,3609.3,3609.1,0.05540616]
[1718212214923,4.663,3609.7,3609.1,0.05540616]
[1718212215124,0.828,3609.3,3609.1,0.05540616]
[1718212216680,7.46,3609.8,3609.3,2.2847]
[1718212216958,7.46,3609.8,3609.6,2.77039]
[1718212217271,0.828,3610.0,3609.4,1.48884571]
[1718212217272,0.828,3609.7,3609.4,1.43344514]
[1718212217759,0.828,3609.7,3609.5,2.77046]
[1718212217925,0.828,3609.6,3609.5,4.20390514]
[1718212219062,0.828,3609.6,3609.2,2.77062]
[1718212219251,0.828,3609.6,3609.3,0.0554039]
[1718212220920,3.0,3610.0,3609.3,0.0554039]
[1718212221123,0.828,3609.7,3609.4,2.77053]
[1718212221349,0.828,3609.7,3609.5,0.05540313]
[1718212224142,3.0,3610.0,3609.5,0.05540313]
[1718212224374,3.0,3610.0,3609.8,2.77023]
[1718212224581,0.828,3609.9,3609.8,2.77023]
[1718212225576,8.03673972,3610.3,3610.0,2.77005]
[1718212225577,7.46,3610.3,3610.0,2.77005]
[1718212225784,7.46,3610.3,3609.8,1.71046814]
[1718212225785,7.46,3610.3,3610.2,2.76992]
[1718212227264,10.46,3610.3,3610.2,2.76992]
[1718212228702,3.0,3610.3,3610.2,4.20336514]
[1718212228867,0.828,3610.6,3610.2,4.62370165]
[1718212229067,0.828,3610.6,3610.4,2.76977]
[1718212229267,0.828,3610.6,3610.4,4.20321514]
[1718212230324,0.828,3610.6,3610.1,2.76995]
[1718212230618,0.828,3610.3,3610.1,2.76995]
[1718212233887,0.828,3610.5,3610.1,2.76995]
[1718212234293,14.89242,3610.9,3610.1,2.76995]
[1718212234294,15.46915972,3610.9,3610.1,2.76995]
[1718212234516,0.828,3610.5,3610.1,2.76995]
[1718212234687,0.828,3610.5,3610.1,3.0746473]
[1718212236427,14.89242,3610.9,3610.2,0.05539001]
[1718212236595,12.123,3610.9,3610.3,0.05538877]
[1718212236791,0.828,3610.6,3610.3,0.05538877]
[1718212238609,0.828,3610.6,3610.4,0.0553897]
[1718212239621,10.46,3610.9,3610.2,0.05538952]
[1718212239827,0.828,3610.6,3610.3,1.48883137]
[1718212240186,10.46,3610.9,3610.3,1.48883137]
[1718212240419,0.828,3610.7,3610.3,1.48883137]
[1718212241032,0.828,3610.7,3610.5,2.76969]
[1718212241323,0.828,3610.7,3610.6,0.05538689]
[1718212241534,0.828,3610.7,3610.5,2.76969]
[1718212242219,10.46,3610.9,3610.5,2.76969]
[1718212242424,0.828,3610.7,3610.6,0.05538626]
[1718212242607,0.828,3610.7,3610.5,2.76969]
[1718212250051,0.828,3610.7,3610.6,0.05538697]
[1718212250547,0.828,3610.7,3610.5,2.76969]
[1718212251054,0.828,3610.7,3610.6,0.05538693]
[1718212251551,0.828,3610.7,3610.5,2.76969]
[1718212255732,0.828,3610.7,3610.3,1.43344514]
[1718212255933,0.828,3610.5,3610.3,1.43344514]
[1718212260731,0.828,3610.5,3609.9,2.77009]
[1718212261039,0.828,3610.0,3609.4,2.77054]
[1718212261259,2.77001,3610.1,3609.5,1.43344514]
[1718212261260,0.828,3609.8,3609.5,1.43344514]
[1718212262453,3.0,3610.0,3609.6,2.77039]
[1718212262655,3.57673972,3610.2,3609.8,2.7702]
[1718212262964,3.828,3610.3,3609.9,0.05539625]
[1718212266282,3.0,3610.3,3610.0,4.25890067]
[1718212272349,0.57673972,3610.6,3610.4,2.76972]
[1718212273087,0.828,3610.5,3610.1,2.76996]
[1718212273262,0.828,3610.3,3610.1,4.20340514]
[1718212273462,0.828,3610.3,3610.1,2.76996]
[1718212274184,3.828,3610.3,3610.1,2.76996]
[1718212274398,4.40473972,3610.3,3610.1,2.76996]
[1718212276457,3.828,3610.3,3610.1,2.76996]
[1718212277088,3.0,3610.2,3610.1,2.76996]